Cogmind - Beta 16.1 @@@ ROGUE MODE // 2026.04.25 @ 01:26:40 Player: AngelSpirit Result: Destroyed by 2S-5WG(R) with Subdweller Machine Gun Performance ------------- Evolutions (0) 0 Regions Visited (2) 400 Robots Destroyed (25) 125 Value Destroyed (460) 460 Prototype IDs (2) 40 Alien Tech Used (0) 0 Bonus (0) 0 TOTAL SCORE: 1025 Bonus ------- None Cogmind --------- Core Integrity 0/250 Matter 257/300 Energy 95/100 System Corruption 0% Temperature Cool (0) Movement Core (50) Location -10/Subcaves Parts ------- > --- POWER (1) -------- (None) > --- PROPULSION (2) --- (None) > --- UTILITY (2) ------ (None) > --- WEAPON (2) ------- Maul > --- INVENTORY (5) ---- Light Treads Cooling System Peak State ------------ > --- POWER ------------ Makeshift Power Source > --- PROPULSION ------- Wheel Compact Wheel > --- UTILITY ---------- High-capacity Storage Unit Sensor Array > --- WEAPON ----------- Improved Light Cannon Improved Light Cannon > --- INVENTORY -------- Light Ion Engine Light Treads Light Treads Wheel Wheel Cooling System Seismic Detector Improved Targeting Computer Improved Targeting Computer Improved Targeting Computer Scrap Shield Hacking Suite Improved Light Cannon Improved Light Cannon Datajack Maul [Rating: 14] Favorites ----------- Power Light Ion Engine Engine Light Ion Engine Propulsion Compact Wheel Treads Light Treads Wheel Compact Wheel Utility Improved Targeting Computer Device Sensor Array Storage Large Storage Unit Processor Improved Targeting Computer Protection Scrap Shield Weapon Improved Light Cannon Ballistic Gun Assault Rifle Ballistic Cannon Improved Light Cannon Impact Weapon Maul Build | -11 -10 -10 ------- Run | Yrd Mat Sub Slots Evolved . | . . . Power . | . . . Propulsion . | . . . Utility . | . . . Weapon . | . . . Parts Attached 19 | 6 9 4 Power 3 | 1 1 1 Engine 3 | 1 1 1 Core . | . . . Reactor . | . . . Propulsion 4 | 2 2 . Treads 2 | . 2 . Leg . | . . . Wheel 2 | 2 . . Hover . | . . . Flight . | . . . Utility 6 | 1 4 1 Device 1 | . 1 . Storage 3 | 1 2 . Processor 1 | . 1 . Hackware . | . . . Protection 1 | . . 1 Artifact . | . . . Weapon 6 | 2 2 2 Energy Gun . | . . . Energy Cannon . | . . . Ballistic Gun 2 | 2 . . Ballistic Cannon 3 | . 2 1 Launcher . | . . . Special Weapon . | . . . Impact Weapon 1 | . . 1 Slashing Weapon . | . . . Piercing Weapon . | . . . Special Melee Weapon . | . . . Unidentified Prototypes . | . . . Parts Lost 8 | . 1 7 Power 2 | . 1 1 Propulsion 2 | . . 2 Utility 1 | . . 1 Weapon 3 | . . 3 Highest Loss Streak 7 | . 1 7 To Critical Strikes . | . . . Average Backups 13 | 1 13 13 Power . | . . . Propulsion 3 | 1 4 3 Utility 5 | . 5 5 Weapon 2 | . 2 2 Tool/Special . | . . . Unused Backups 11 | . . 11 Power 1 | . . 1 Propulsion 2 | . . 2 Utility 6 | . . 6 Weapon 1 | . . 1 Tool/Special 1 | . . 1 Average Slot Usage (%) 96 | . 97 86 Engine 13 | . 13 10 Treads 2 | . 2 . Wheel 25 | . 25 25 Device 1 | . . 10 Storage 14 | . 14 10 Processor 10 | . 11 . Ballistic Gun 2 | . 2 . Ballistic Cannon 25 | . 25 24 Peak Build Rating 14 | 6 12 14 Average Rating 10 | 4 11 12 On Entrance 5 | . 6 11 Avg Prop Armor Cover (%) . | . . . Naked Turns . | . . . Heaviest Build 53 | 12 52 53 Greatest Support 40 | 26 40 26 Greatest Overweight (x) 2 | . 1 2 Average Overweight (x) . | . . 1 Largest Inventory Capacity 20 | 8 20 20 Average Capacity 15 | 7 16 16 Most Carried 17 | 5 16 17 Average Carried 13 | 1 13 13 Final Capacity 20 | 8 20 5 Final Carried 15 | 5 15 2 Class Distribution -------------------- 100% | Mutant Dominant Class ---------------- Mutant | -10/Materials Mutant | -10/Subcaves Resources | -11 -10 -10 ----------- Run | Yrd Mat Sub Matter Collected 773 | 256 505 12 Remotely . | . . . Salvage Created 493 | 41 452 . Parts 44 | 7 37 . Haulers Intercepted . | . . . Recyclers Shooed 1 | . 1 . Parts Field Recycled . | . . . Retrieved Matter . | . . . Parts Self-Destructed . | . . . Prevented . | . . . Parts Restored . | . . . Kills | -11 -10 -10 ------- Run | Yrd Mat Sub Combat Hostiles Destroyed 13 | . 12 1 Cannons 13 | . 12 1 Classes Destroyed 8 | 1 6 1 Worker 1 | . 1 . Tunneler 3 | 3 . . Recycler 3 | . 3 . Operator 2 | . 2 . Watcher 3 | . 3 . Swarmer 6 | . 6 . Grunt 6 | . 6 . Subdweller 1 | . . 1 Best Kill Streak 4 | 3 4 1 Combat Bots Only 4 | . 4 1 Max Kills in Single Turn 2 | 1 2 1 Gunslinging . | . . . Exploded . | . . . Melee . | . . . Uniques/NPCs Destroyed . | . . . Combat | -11 -10 -10 -------- Run | Yrd Mat Sub Hostile Shots Fired 96 | . 42 54 Missed 27 | . 15 12 Hits 69 | . 27 42 Projectile 69 | . 27 42 Damage Taken 1154 | . 273 881 Core 252 | . 27 225 Absorbed by Shields . | . . . Core Remaining (%) 100 | 100 . . Volleys Fired 53 | 5 42 6 Largest 2 | 2 2 2 Hottest 66 | 40 66 66 Shots Fired 104 | 10 84 10 Gun 10 | 10 . . Cannon 94 | . 84 10 Launcher . | . . . Special . | . . . Kinetic 104 | 10 84 10 Thermal . | . . . Explosive . | . . . Electromagnetic . | . . . Robot Hit Streak 8 | 2 8 8 Robot Miss Streak 2 | 2 2 1 Penetration Max . | . . . Secondary Targets . | . . . Shots Hit Robots 59 | 3 47 9 Core Hits 27 | 3 22 2 Critical Kills . | . . . Critical Parts Destroyed . | . . . Critical Strikes 4 | . 4 . Blast 4 | . 4 . Melee Attacks 1 | . . 1 Impact 1 | . . 1 Slashing . | . . . Piercing . | . . . Sneak Attacks . | . . . Combat Hostiles . | . . . Follow-up Attacks . | . . . Damage Inflicted 1324 | 36 1058 230 Guns 36 | 36 . . Cannons 1235 | . 1058 177 Explosions . | . . . Melee 53 | . . 53 Ramming . | . . . Kinetic 1271 | 36 1058 177 Thermal . | . . . Explosive . | . . . Electromagnetic . | . . . Impact 53 | . . 53 Slashing . | . . . Piercing . | . . . Highest Corruption . | . . . Average Corruption . | . . . Corruption Purged . | . . . Corruption Blocked . | . . . Overload Shots . | . . . Overflow Damage 28 | . 28 . Projectiles 28 | . 28 . Explosions . | . . . Melee . | . . . Knockbacks 12 | . 9 3 Impact 1 | . . 1 Kinetic 9 | . 9 . Secondary 2 | . . 2 Self-Inflicted Damage . | . . . Shots . | . . . Rammed . | . . . Targets Rammed . | . . . Kicked . | . . . Crushed . | . . . Highest Temperature 66 | . 66 . Average Temperature 17 | . 17 . Received Heat Transfer 180 | . 96 84 Siege Activations . | . . . Martial Activations . | . . . Shielding Activations . | . . . Robots Disrupted . | . . . Combat Hostiles . | . . . Robots Corrupted . | . . . Combat Hostiles . | . . . Parts Fried . | . . . Impact Corruptions . | . . . Robots Melted . | . . . Combat Hostiles . | . . . Parts Melted . | . . . Heat Transferred . | . . . Parts Sabotaged . | . . . Parts Stolen . | . . . Parts Stripped . | . . . Power Chain Reactions . | . . . Alert | -11 -10 -10 ------- Run | Yrd Mat Sub Maximum Alert Level . | . . . Low Security (%) 100 | 100 100 . Level 1 . | . . . Level 2 . | . . . Level 3 . | . . . Level 4 . | . . . Level 5 . | . . . High Security . | . . . Max Security . | . . . Peak Influence 181 | 10 181 . Initial 3 | . 3 . Average 86 | 1 91 . Influence Increases 542 | 15 527 . Destroy 0b10 Robot/C 240 | . 240 . Destroy 0b10 Robot/NC 60 | 15 45 . Destroy Leader 66 | . 66 . Successful Hack 36 | . 36 . Select Force Hacks 60 | . 60 . Disable Machine 15 | . 15 . Destroy Structure 5 | . 5 . Partial Spotted 15 | . 15 . Lose Combat Pursuer 45 | . 45 . Influence Decreases 542 | 10 427 105 Entered New Map 53 | . 2 51 Time Decay 465 | 10 415 40 Lost Part 24 | . 10 14 Squads Dispatched 3 | . 3 . Investigation 2 | . 2 . Extermination . | . . . Reinforcement 1 | . 1 . Assault . | . . . Garrison . | . . . Intercept . | . . . Searches Triggered . | . . . Construction Impeded . | . . . Haulers Reinforced . | . . . Active Scanning Responses . | . . . Cargo Convoy Interrupts . | . . . Stealth | -11 -10 -10 --------- Run | Yrd Mat Sub Distress Signals 1 | . 1 . Communications Jammed . | . . . Distress Signals . | . . . Times Spotted 30 | . 20 10 Peak Tracking Total 10 | . 5 10 Tactical Retreats 3 | . 3 . Traps | -11 -10 -10 ------- Run | Yrd Mat Sub Traps Triggered . | . . . Indirectly . | . . . Trap Hack Attempts . | . . . Triggered . | . . . Disarmed . | . . . Reprogrammed . | . . . Reused . | . . . Traps Extracted . | . . . Installed . | . . . Triggered . | . . . Machines | -11 -10 -10 ---------- Run | Yrd Mat Sub Machines Disabled 1 | . 1 . Max in Single Turn 1 | . 1 . Machines Repaired . | . . . Machines Dismantled . | . . . Machines Sabotaged . | . . . Overloaded Fab Kills . | . . . Hacking | -11 -10 -10 --------- Run | Yrd Mat Sub Machines Accessed 11 | . 11 . Terminals 8 | . 8 . Fabricators . | . . . Repair Stations 1 | . 1 . Recycling Units 2 | . 2 . Scanalyzers . | . . . Garrison Access . | . . . Total Hacks 34 | . 34 . Successful 18 | . 18 . Failed 16 | . 16 . Catastrophic . | . . . Database Lockouts . | . . . Manual 28 | . 28 . Terminals 28 | . 28 . Fabricators . | . . . Repair Stations 4 | . 4 . Recycling Units 2 | . 2 . Scanalyzers . | . . . Garrison Access . | . . . Terminal Hacks 6 | . 6 . Robot Schematic 1 | . 1 . Prototype ID Bank 1 | . 1 . Terminal Index 1 | . 1 . Locate Traps 3 | . 3 . Fabricator Hacks . | . . . Repair Station Hacks . | . . . Recycling Unit Hacks . | . . . Scanalyzer . | . . . Garrison Access Hacks . | . . . Unauthorized Hacks 12 | . 12 . Terminals 10 | . 10 . Track 1 | . 1 . Botnet 2 | . 2 . Operators 1 | . 1 . Skim 6 | . 6 . Fabricators . | . . . Repair Stations . | . . . Recycling Units 2 | . 2 . Tunnel 2 | . 2 . Scanalyzers . | . . . Garrison Access . | . . . Data Cores Recovered 1 | . 1 . Used . | . . . Hacking Detections 8 | . 8 . Full Trace Events 1 | . 1 . Feedback Events . | . . . Feedback Blocked . | . . . Robot Schematics Acquired 1 | . 1 . Robots Built . | . . . Authchips . | . . . Time . | . . . Total Robot Build Rating . | . . . Part Schematics Acquired . | . . . Parts Built . | . . . Authchips . | . . . Time . | . . . Total Part Build Rating . | . . . Part Studies Acquired . | . . . Parts Repaired . | . . . Time . | . . . Parts Recycled . | . . . Recycled Matter . | . . . Retrieved Matter . | . . . Retrieved Components . | . . . Parts Scanalyzed . | . . . Part Schematics Acquired . | . . . Parts Damaged . | . . . Bothacking | -11 -10 -10 ------------ Run | Yrd Mat Sub Used RIF Installer . | . . . Robots Hacked . | . . . Non-combat . | . . . Combat . | . . . Robot Hacks Applied . | . . . Relay Couplers Released . | . . . Fabnet Peak Effective % . | . . . Robots Rewired . | . . . Allies Hacked . | . . . Hacks Repelled . | . . . Allies | -11 -10 -10 -------- Run | Yrd Mat Sub Total Allies . | . . . Largest Group . | . . . Highest-Rated Group . | . . . Highest-Rated Ally . | . . . Total Orders . | . . . Ally Attacks . | . . . Total Damage . | . . . Kills . | . . . Allies Corrupted . | . . . Allies Melted . | . . . Intel | -11 -10 -10 ------- Run | Yrd Mat Sub Active Infowar (turns) 90 | . 1 89 Sensors 90 | . 1 89 Robot Analysis Total . | . . . Derelict Logs Recovered . | . . . Drone Launches . | . . . Drone Recoveries . | . . . Exploration | -11 -10 -10 ------------- Run | Yrd Mat Sub Turns Passed 1450 | 73 1264 113 Spaces Moved 998 | 49 882 67 Core 2 | 2 . . Treads 41 | . 41 . Legs . | . . . Wheels 955 | 47 841 67 Hover . | . . . Flight . | . . . Fastest Speed 50 | 50 90 100 Average Speed 106 | 89 107 116 Slowest Speed 160 | 100 160 120 Overloaded Moves . | . . . Propulsion Burnouts . | . . . Robots Hopped . | . . . Potential Cave-ins . | . . . Cave-ins Triggered . | . . . Exploration Rate (%) 37 | 4 98 9 Regions Visited 2 Branch Regions 1 Pre-discovered Areas 3 | . 3 . Known Exits Taken . | . . . Unknown Exits Taken 2 | 1 1 . Scrap Searched . | . . . Spaces Dug . | . . . Terrain Destroyed . | . . . Melee . | . . . Projectile . | . . . AOE . | . . . Terrain Rammed . | . . . Walls Destroyed . | . . . Machines Disabled . | . . . Actions | -11 -10 -10 --------- Run | Yrd Mat Sub Total 1270 | 65 1114 91 Wait 166 | 1 157 8 Move 996 | 48 881 67 Hop . | . . . Pick Up 20 | 5 13 2 Fast Attach 11 | 6 4 1 Attach 5 | . 2 3 Detach . | . . . Swap 9 | . 9 . Drop 9 | . 6 3 Fire 53 | 5 42 6 Melee 1 | . . 1 Ram . | . . . Kick . | . . . Crush . | . . . Escape Stasis . | . . . Rewire . | . . . Trap . | . . . Miscellaneous . | . . . Route ------- -11/Scrapyard -10/Materials (discovered 5 exits: [*Mat x3] / [*Min] / [*Sub]) -10/Subcaves History --------- Turn | Location | Event 6 | -11/Scrapyard | Discovered new exit (range 15) 74 | -11/Scrapyard | Entered Materials 164 | -10/Materials | Discovered new exit (range 5) 308 | -10/Materials | Build established: Mutant 463 | -10/Materials | Discovered new exit (range 7) 777 | -10/Materials | Discovered new exit (range 10) 966 | -10/Materials | Discovered new exit (range 11) 1052 | -10/Materials | Learned location of Subcaves (-10) 1105 | -10/Materials | Learned location of 2 exits from Mines 1202 | -10/Materials | Learned Storage stockpile data 1230 | -10/Materials | Discovered new exit (range 9) 1238 | -10/Materials | Learned 4 Subcaves zone layouts 1271 | -10/Materials | Loaded intel: 1 repair station location 1338 | -10/Materials | Entered Subcaves 1339 | -10/Subcaves | Approached by a straggling Scientist 1350 | -10/Subcaves | Shifting Twisted Machinery released Mak. Power Source 1369 | -10/Subcaves | Shifting Twisted Machinery released Battle Rifle 1422 | -10/Subcaves | Ambushed by swarm of Subdwellers 1423 | -10/Subcaves | Ambushed by Subdwellers from Twisted Machinery 1423 | -10/Subcaves | Ambushed by Subdwellers from Twisted Machinery 1423 | -10/Subcaves | Ambushed by Subdwellers from Twisted Machinery 1442 | -10/Subcaves | Core integrity fell below 50% 1445 | -10/Subcaves | Core integrity fell below 20% 1451 | -10/Subcaves | Destroyed by 2S-5WG(R) with Subdweller Machine Gun Last Messages --------------- 01426_ Dropped Hcp. Storage Unit. 01427_ Dropped Sensor Array. 01427_ ZF-XQQ(h) destroyed. 01436_ Imp. Light Cannon destroyed. 01437_ Scrap Shield destroyed. 01437_ Imp. Light Cannon destroyed. 01439_ Mak. Power Source destroyed. 01440_ X2-JED(R) destroyed. 01441_ Wheel destroyed. 01442_ Acquired 12 matter. 01443_ 3A-2J9(R) destroyed. 01445_ Acquired Maul. 01446_ Imp. Light Cannon destroyed. 01448_ Com. Wheel destroyed. 01448_ JA-V0H(R) knocked back. 01450_ FS-AZB(R) affixes Scrap Shield Fragment to Scrap Shield. 01450_ 2S-5WG(R) affixes Scrap Shield Fragment to Scrap Shield. 01451_ Subatomizers dissect the Phase Shifter. Map ----- +----------------------------------------------------+ | ??????????????????# """"?????? | | ??????????????????## """"" " " "#?????? | | ???????????????????# ## ## """ ##?????? | | ???????????????##?????# #?## " #??????? | | ??????????????## #######???# " ##?????? | | ??????????????# ##?#### ## #?????? | | ???????????????# ### ## " #?????? | | ???????????????# " ##????? | | ???????????????# #????? | | ???????????????# ###????? | | ???????????????###### #??????? | | ????????????????????## #????? | | ????????????????###### ??? | | ??????????????### # ## # ?? | | ??????????????# #### #?? | | ??????????????## ##????#??? | | ??????????????# # ## ## # ###????????? | | ??????????????## #########? ###??????????? | | ??????????????## #???????? #????????????? | | ??????????????# ! ###??????? ##????????????? | | ??????????????##![R ##??????##?????????????? | | ???????????????#%!Rc #?????????????????????? | | ??????????????##!!=% ##?????##?????????????? | | ??????????????#]!RRRR ### ## ????????? | | ??????????????#/!%RR #?????????? | | ??????????????#*#!#@ #??????????? | | ??????????????##### #??????????? | | ??????????????????# #??????????? | | ??????????????????## ## ##??????????? | | ????????????????????# #???#???????????? | | ?????????????????????# ##???????????????? | | ??????????????????????#####????????????????? | | ???????????????????????????????????????????? | | ???????????????????????????????????????????? | | ???????????????????????????????????????????? | | ???????????????????????????????????????????? | | ???????????????????????????????????????????? | | ???????????????????????????????????????????? | | ???????????????????????????????????????????? | | ???????????????????????????????????????????? | | ???????????????????????????????????????????? | | ???????????????????????????????????????????? | | ???????????????????????????????????????????? | | ???????????????????????????????????????????? | | ???????????????????????????????????????????? | | ???????????????????????????????????????????? | | ???????????????????????????????????????????? | | ???????????????????????????????????????????? | | ???????????????????????????????????????????? | | ???????????????????????????????????????????? | +----------------------------------------------------+ Best States ------------- Heat Dissipation 25 Energy Generation 15 Energy Capacity 170 Matter Stores 300 Matter Capacity 300 Sight Range 16 Robot Scan Range 14 Terrain Scan Density 10 Armor Coverage 800 Evasion (%) 42 Targeting Accuracy 6 Recoil Reduction 2 Item Schematics ----------------- None Robot Schematics ------------------ M-13 Machinist | -10/Materials | Hacked Fabricated ------------ Nothing Repaired ---------- Nothing Studied --------- None Alien Tech Used ----------------- None Achievements -------------- None Challenges ------------ None Game ------ Seed LargeReactiveRedistributor Manual? 0 Play Time 00:10:42 Cumulative 743.5 hours Start 2026.04.25 @ 01:15:08 End 2026.04.25 @ 01:26:40 Sessions 1 Manual Loads 0 Difficulty Rogue Special Mode None Game No. 218 Rogue 218 Adventurer 0 Explorer 0 Win Type - Total 28 Types 10/3/7/1/1/0/2/1/1/2 Lore% 95 Gallery% 87 Achievement% 81 Wizard Run 0 Options --------- Layout 1 ASCII 0 Keyboard 0 Movement Mouse Keybinds 0 Fullscreen 2 Font 32/SmallcapsGlow Map View 50x35 Zoom Use 0% Tactical HUD 1 Map Filters NONE Filters NONE Steam 1 RUN: a16a8c1d-453d-4345-9f4c-c82a0117451a